{"text_format":"1","workbook":"xlsx","n_sheets":3,"sheets":["Instrucciones","Reformulación Presupuesto Ba","Resumen Presupuesto"],"not_rendered":{"charts":0,"images":1,"macros":1,"external_links":0,"defined_names":8,"comments":1,"pivot_tables":0},"unopened":[],"bounds":{"document_bytes":16777216,"sheet_cells":100000,"rows_first":2000,"rows_last":500,"rows_between":2000,"halvings":0,"cell_chars":16384,"cell_head_chars":4096},"cells_cut":0,"cells_raw":0,"read":"whole","date_system":"1900"}

{"sheet":"Instrucciones","index":0,"n_rows":18,"n_cols":10,"rows_kept":18,"cut":false,"hidden":false,"merged":[[16,1,16,17],[1,9,1,11],[2,2,3,17],[4,2,4,17],[6,2,6,17],[8,1,8,17],[9,1,9,17],[10,1,10,17],[12,1,12,17],[14,1,14,17]]}
[]
[null,null,null,null,null,null,null,null,null,"Doc_basico3_presup_reformulado_Ba INSTRUCCIONES"]
[null,null,"SUBVENCIONES DEL AYUNTAMIENTO DE BARCELONA PARA EL FORTALECIMIENTO DE LA ECONOMÍA SOCIAL Y SOLIDARIA Y POR LA INTERCOOPERACIÓN EN LA ESTRATEGIA #ESSBCN2030 - FORTALECEMOS LA ESS 2025"]
[]
[null,null,"Aspectos relevantes relacionados con la reformulación"]
[]
[null,null,"INSTRUCCIONES"]
[]
[null,"1. Cumplimentar sólo las celdas en blanco de la pestaña \"Reformulación Presupuesto\" con los datos económicos del proyecto:"]
[null,"1.1 Cumplimentar los cuadros DATOS BÁSICOS-PREVISIÓN DE GASTOS DEL PROYECTO SUBVENCIONABLE INICIAL, con los datos económicos de la propuesta inicial con subvención otorgada."]
[null,"1.2 Cumplimentar los cuadros DATOS BÁSICOS-PREVISIÓN DE GASTOS DEL PROYECTO REFORMULADO, con los datos económicos de la propuesta de reformulación."]
[]
[null,"2. Revisar y rellenar sólo las celdas en blanco de la pestaña \"Resumen Presupuesto\" con los datos económicos del proyecto."]
[]
[null,"3. Imprimir las hojas de las 2 pestañas (Reformulación presupuesto y Resumen Presupuesto). En formato pdf."]
[]
[null,"4. Si la solicitud se presentó por vía telemática, es necesario registar la documentación telemáticamente dentro de la convocatoria específica como anexión de documentos adicionales y utilizar el número de trámite que el sistema de registro proporciona en el momento de la presentación de la solicitud de la subvención."]
[null,"Enlace para realizar el trámite."]

{"sheet":"Reformulación Presupuesto Ba","index":1,"n_rows":142,"n_cols":15,"rows_kept":142,"cut":false,"hidden":false,"merged":[[136,0,136,14],[137,0,137,14],[138,0,138,14],[12,7,12,9],[13,7,13,9],[11,1,11,3],[12,1,12,3],[13,1,13,3],[11,7,11,9],[16,12,16,14],[14,1,14,3],[16,0,16,4],[14,7,14,9],[16,6,16,10],[14,10,14,12],[11,10,11,12],[10,0,10,3],[10,6,10,9],[1,1,1,10],[3,0,3,14],[6,1,6,9],[7,1,7,9],[8,1,8,9],[4,0,4,14],[139,0,139,14],[140,0,140,14],[141,0,141,14],[123,0,123,14],[124,0,124,14],[125,0,125,14],[126,0,126,14],[127,0,127,14],[128,0,128,14],[129,0,129,14],[130,0,130,14],[131,0,131,14],[132,0,132,14],[133,0,133,14],[134,0,134,14],[135,0,135,14]]}
[]
[null,"Reformulación presupuesto Modalidad Ba"]
[]
["Programa de subvenciones del Ayuntamiento de Barcelona para el fortalecimiento de la Economía Social y Solidaria y por la intercooperación en la Estrategia #ESSBCN2030 - FORTALECEMOS LA ESS 2025"]
["CUMPLIMENTAR SÓLO LAS CELDAS EN BLANCO"]
[]
["Nombre de la persona jurídica"]
["NIF de la persona jurídica"]
["Nombre del proyecto subvencionable"]
[]
["DATOS BÁSICOS DEL PROYECTO INICIAL SOLICITADO\n(indicar los datos solicitados en la propuesta inicial)",null,null,null,null,null,"DATOS BÁSICOS PROYECTO REFORMULADO"]
["Importe total del proyecto subvencionable",null,null,null,null,null,"Importe total del proyecto REFORMULADO",null,null,null,{"$f":"IF(H12<B12*0.7,\"No se puede reformular más de un 30%.\",\"\")","v":""}]
["Importe imputable a la subvención municipal",null,null,null,null,null,"Importe imputable a la subvención OTORGADA\n(indicar el importe otorgado a la resolución)"]
["Importe de la aportación y/o cofinanciación de la organización",{"$f":"+B12-B13","v":0},null,null,null,null,"Importe de la aportación y/o cofinanciación de la organización",{"$f":"H12-H13","v":0}]
["% del importe solicitado respecto al total del proyecto subvencionable (máximo 80%*)",{"$f":"IF(B13>0,B13/B12,\"\")","v":""},null,null,"* La cuantía de la subvención otorgada no superará el 80% del gasto total del proyecto a subvencionar.",null,"% del importe solicitado respecto al total del proyecto subvencionable (máximo 80%*)\n(debe ser igual o inferior respecto al % de la solicitud inicial)",{"$f":"IF(H13>0,H13/H12,\"\")","v":""},null,null,{"$f":"IF(H15=\"\",\"\",IF(H15>0.8,\"La cuantía de la subvención atorgada no puede superar el 80% del gasto total del proyecto.\",IF(H15>B15,\"Debe de ser igual o inferior al % de la propuesta inicial.\",\"\")))","v":""}]
[]
["PREVISIÓN DE GASTOS DEL PROYECTO SUBVENCIONABLE INICIAL",null,null,null,null,null,"PREVISIÓN DE GASTOS DEL PROYECTO REFORMULADO",null,null,null,null,null,"DIFERENCIA REFORMULACIÓN Y PROYECTO INICIAL"]
[]
["Partidas","Importe imputable a la subvención municipal","% subvención / total","Importe de la aportación y/o atribuciones de la organización","Importe total del proyecto",null,"Partidas","Importe imputable a la subvención municipal","% subvención / total","Importe de la aportación y/o atribuciones de la organización","Importe total del proyecto",null,"Importe imputable a la subvención municipal","Importe de la aportación y/o atribuciones de la organización","Importe total del proyecto"]
["D1. Retribuciones y seguridad social (régimen general) del personal propio vinculado directamente y de forma significativa al proyecto subvencionable (máximo 25% subvención)",{"$f":"SUM(B21:B25)","v":0},{"$f":"IF(B20>0,B20/$B$13,)","v":0},{"$f":"SUM(D21:D25)","v":0},{"$f":"B20+D20","v":0},null,"D1. Retribuciones y seguridad social (régimen general) del personal propio vinculado directamente y de forma significativa al proyecto subvencionable (máximo 25% subvención)",{"$f":"SUM(H21:H25)","v":0},{"$f":"IF(H20>0,H20/$H$13,)","v":0},{"$f":"SUM(J21:J25)","v":0},{"$f":"+H20+J20","v":0},null,{"$f":"B20-H20","v":0},{"$f":"D20-J20","v":0},0]
[null,null,null,null,0,null,null,null,null,null,0,null,{"$f":"B21-H21","v":0},0,0]
[null,null,null,null,0,null,null,null,null,null,0,null,0,0,0]
[null,null,null,null,0,null,null,null,null,null,0,null,0,0,0]
[null,null,null,null,0,null,null,null,null,null,0,null,0,0,0]
[null,null,null,null,0,null,null,null,null,null,0,null,0,0,0]
["TOTAL DE GASTOS DEL PERSONAL\nMáximo 25% del importe imputable a la subvención municipal si se trata de personal propio asignado al proyecto",{"$f":"B20","v":0},{"$f":"IF(B26>0,B26/$B$13,)","v":0},{"$f":"D20","v":0},{"$f":"E20","v":0},null,"TOTAL DE GASTOS DEL PERSONAL\nMáximo 25% del importe imputable a la subvención municipal si se trata de personal propio asignado al proyecto",{"$f":"H20","v":0},{"$f":"IF(H26>0,H26/$H$13,)","v":0},{"$f":"J20","v":0},{"$f":"K20","v":0},null,{"$f":"B26-H26","v":0},{"$f":"D26-J26","v":0},0]
["D2. Trabajos realizados por profesionales y empresas externas directamente vinculadas al acompañamiento de procesos de la organización y con sus asociadas vinculados a las acciones subvencionadas",{"$f":"SUM(B28:B32)","v":0},{"$f":"IF(B27>0,B27/$B$13,)","v":0},{"$f":"SUM(D28:D32)","v":0},{"$f":"B27+D27","v":0},null,"D2. Trabajos realizados por profesionales y empresas externas directamente vinculadas al acompañamiento de procesos de la organización y con sus asociadas vinculados a las acciones subvencionadas",{"$f":"SUM(H28:H32)","v":0},{"$f":"IF(H27>0,H27/$H$13,)","v":0},{"$f":"SUM(J28:J32)","v":0},{"$f":"+H27+J27","v":0},null,0,{"$f":"D27-J27","v":0},0]
[null,null,null,null,0,null,null,null,null,null,0,null,0,0,0]
[null,null,null,null,0,null,null,null,null,null,0,null,0,0,0]
[null,null,null,null,0,null,null,null,null,null,0,null,0,0,0]
[null,null,null,null,0,null,null,null,null,null,0,null,0,0,0]
[null,null,null,null,0,null,null,null,null,null,0,null,0,0,0]
["D3. Alquiler de bienes inmuebles directamente vinculados al proyecto subvencionable (en ningún caso se aceptará el alquiler de la sede de la persona jurídica solicitante o en agrupación).",{"$f":"SUM(B34:B38)","v":0},{"$f":"IF(B33>0,B33/$B$13,)","v":0},{"$f":"SUM(D34:D38)","v":0},{"$f":"B33+D33","v":0},null,"D3. Alquiler de bienes inmuebles directamente vinculados al proyecto subvencionable (en ningún caso se aceptará el alquiler de la sede de la persona jurídica solicitante o en agrupación).",{"$f":"SUM(H34:H38)","v":0},{"$f":"IF(H33>0,H33/$H$13,)","v":0},{"$f":"SUM(J34:J38)","v":0},{"$f":"H33+J33","v":0},null,{"$f":"B33-H33","v":0},{"$f":"D33-J33","v":0},{"$f":"E33-K33","v":0}]
[null,null,null,null,0,null,null,null,null,null,0,null,{"$f":"B34-H34","v":0},0,0]
[null,null,null,null,0,null,null,null,null,null,0,null,0,0,0]
[null,null,null,null,0,null,null,null,null,null,0,null,0,0,0]
[null,null,null,null,0,null,null,null,null,null,0,null,0,0,0]
[null,null,null,null,0,null,null,null,null,null,{"$f":"+H38+J38","v":0},null,0,0,0]
["D4. Adquisición de materiales y bienes consumibles íntegramente imputables al proyecto subvencionable.",{"$f":"SUM(B40:B44)","v":0},{"$f":"IF(B39>0,B39/$B$13,)","v":0},{"$f":"SUM(D40:D44)","v":0},0,null,"D4. Adquisición de materiales y bienes consumibles íntegramente imputables al proyecto subvencionable.",{"$f":"SUM(H40:H44)","v":0},{"$f":"IF(H39>0,H39/$H$13,)","v":0},{"$f":"SUM(J40:J44)","v":0},{"$f":"H39+J39","v":0},null,{"$f":"B39-H39","v":0},{"$f":"D39-J39","v":0},{"$f":"E39-K39","v":0}]
[null,null,null,null,0,null,null,null,null,null,0,null,{"$f":"B40-H40","v":0},0,0]
[null,null,null,null,0,null,null,null,null,null,0,null,0,0,0]
[null,null,null,null,0,null,null,null,null,null,0,null,0,0,0]
[null,null,null,null,0,null,null,null,null,null,0,null,0,0,0]
[null,null,null,null,0,null,null,null,null,null,{"$f":"+H44+J44","v":0},null,0,0,0]
["D5. Publicidad y propaganda de las actividades directamente vinculadas al proyecto subvencionable.",{"$f":"SUM(B46:B50)","v":0},{"$f":"IF(B45>0,B45/$B$13,)","v":0},{"$f":"SUM(D46:D50)","v":0},0,null,"D5. Publicidad y propaganda de las actividades directamente vinculadas al proyecto subvencionable.",{"$f":"SUM(H46:H50)","v":0},{"$f":"IF(H45>0,H45/$H$13,)","v":0},{"$f":"SUM(J46:J50)","v":0},{"$f":"H45+J45","v":0},null,{"$f":"B45-H45","v":0},{"$f":"D45-J45","v":0},{"$f":"E45-K45","v":0}]
[null,null,null,null,0,null,null,null,null,null,0,null,{"$f":"B46-H46","v":0},0,0]
[null,null,null,null,0,null,null,null,null,null,0,null,0,0,0]
[null,null,null,null,0,null,null,null,null,null,0,null,0,0,0]
[null,null,null,null,0,null,null,null,null,null,0,null,0,0,0]
[null,null,null,null,0,null,null,null,null,null,{"$f":"+H50+J50","v":0},null,0,0,0]
["D6. Viajes y desplazamientos imputables a las actividades del proyecto subvencionable (con un límite del 7% de la subvención).",{"$f":"SUM(B52:B56)","v":0},{"$f":"IF(B51>0,B51/$B$13,)","v":0},{"$f":"SUM(D52:D56)","v":0},0,null,"D6. Viajes y desplazamientos imputables a las actividades del proyecto subvencionable (con un límite del 7% de la subvención).",{"$f":"SUM(H52:H56)","v":0},{"$f":"IF(H51>0,H51/$H$13,)","v":0},{"$f":"SUM(J52:J56)","v":0},{"$f":"H51+J51","v":0},null,{"$f":"B51-H51","v":0},{"$f":"D51-J51","v":0},{"$f":"E51-K51","v":0}]
[null,null,null,null,0,null,null,null,null,null,0,null,{"$f":"B52-H52","v":0},0,0]
[null,null,null,null,0,null,null,null,null,null,0,null,0,0,0]
[null,null,null,null,0,null,null,null,null,null,0,null,0,0,0]
[null,null,null,null,0,null,null,null,null,null,0,null,0,0,0]
[null,null,null,null,0,null,null,null,null,null,{"$f":"+H56+J56","v":0},null,0,0,0]
["D7. Gastos del informe de auditoría (con un límite máximo de 1.500 euros de la subvención)",{"$f":"SUM(B58:B62)","v":0},{"$f":"IF(B57>0,B57/$B$13,)","v":0},{"$f":"SUM(D58:D62)","v":0},0,null,"D7. Gastos del informe de auditoría (con un límite máximo de 1.500 euros de la subvención)",{"$f":"SUM(H58:H62)","v":0},{"$f":"IF(H57>0,H57/$H$13,)","v":0},{"$f":"SUM(J58:J62)","v":0},{"$f":"H57+J57","v":0},null,{"$f":"B57-H57","v":0},{"$f":"D57-J57","v":0},{"$f":"E57-K57","v":0}]
[null,null,null,null,0,null,null,null,null,null,0,null,{"$f":"B58-H58","v":0},0,0]
[null,null,null,null,0,null,null,null,null,null,0,null,0,0,0]
[null,null,null,null,0,null,null,null,null,null,0,null,0,0,0]
[null,null,null,null,0,null,null,null,null,null,0,null,0,0,0]
[null,null,null,null,0,null,null,null,null,null,{"$f":"+H62+J62","v":0},null,0,0,0]
["D8. Otros gastos que de manera justificada puedan imputarse directamente al proyecto subvencionable.",{"$f":"SUM(B64:B68)","v":0},{"$f":"IF(B63>0,B63/$B$13,)","v":0},{"$f":"SUM(D64:D68)","v":0},0,null,"D8. Otros gastos que de manera justificada puedan imputarse directamente al proyecto subvencionable.",{"$f":"SUM(H64:H68)","v":0},{"$f":"IF(H63>0,H63/$H$13,)","v":0},{"$f":"SUM(J64:J68)","v":0},{"$f":"H63+J63","v":0},null,{"$f":"B63-H63","v":0},{"$f":"D63-J63","v":0},{"$f":"E63-K63","v":0}]
[null,null,null,null,0,null,null,null,null,null,0,null,{"$f":"B64-H64","v":0},0,0]
[null,null,null,null,0,null,null,null,null,null,0,null,0,0,0]
[null,null,null,null,0,null,null,null,null,null,0,null,0,0,0]
[null,null,null,null,0,null,null,null,null,null,0,null,0,0,0]
[null,null,null,null,0,null,null,null,null,null,{"$f":"+H68+J68","v":0},null,0,0,0]
["TOTAL DE OTROS GASTOS DIRECTOS",{"$f":"B27+B33+B39+B45+B51+B57+B63","v":0},{"$f":"IF(B69>0,B69/$B$13,)","v":0},{"$f":"D27+D33+D39+D45+D51+D57+D63","v":0},{"$f":"E27+E33+E39+E45+E51+E57+E63","v":0},null,"TOTAL DE OTROS GASTOS DIRECTOS",{"$f":"H27+H33+H39+H45+H51+H57+H63","v":0},{"$f":"IF(H69>0,H69/$H$13,)","v":0},{"$f":"J27+J33+J39+J45+J51+J57+J63","v":0},{"$f":"K27+K33+K39+K45+K51+K57+K63","v":0},null,{"$f":"B69-H69","v":0},{"$f":"D69-J69","v":0},0]
["TOTAL GASTOS DIRECTOS (aquellos que se identifican directamente con el proyecto subvencionable)",{"$f":"SUM(B26,B69)","v":0},{"$f":"IF(B70>0,B70/$B$13,)","v":0},{"$f":"SUM(D26,D69)","v":0},{"$f":"E26+E69","v":0},null,"TOTAL GASTOS DIRECTOS (aquellos que se identifican directamente con el proyecto subvencionable)",{"$f":"SUM(H26,H69)","v":0},{"$f":"IF(H70>0,H70/$H$13,)","v":0},{"$f":"SUM(J26,J69)","v":0},{"$f":"K26+K69","v":0},null,0,{"$f":"D70-J70","v":0},0]
["I1. Personal de apoyo al proyecto (nóminas y seguridad social)",{"$f":"SUM(B72:B75)","v":0},null,{"$f":"SUM(D72:D75)","v":0},{"$f":"+B71+D71","v":0},null,"I1. Personal de apoyo al proyecto (nóminas y seguridad social)",{"$f":"SUM(H72:H75)","v":0},null,{"$f":"SUM(J72:J75)","v":0},{"$f":"+H71+J71","v":0},null,0,{"$f":"D71-J71","v":0},0]
[null,null,null,null,0,null,null,null,null,null,0,null,0,0,0]
[null,null,null,null,0,null,null,null,null,null,0,null,0,0,0]
[null,null,null,null,0,null,null,null,null,null,0,null,0,0,0]
[null,null,null,null,0,null,null,null,null,null,0,null,0,0,0]
["I2. Seguros",{"$f":"SUM(B77:B80)","v":0},null,{"$f":"SUM(D77:D80)","v":0},0,null,"I2. Seguros",{"$f":"SUM(H77:H80)","v":0},null,{"$f":"SUM(J77:J80)","v":0},0,null,{"$f":"B76-H76","v":0},{"$f":"D76-J76","v":0},0]
[null,null,null,null,0,null,null,null,null,null,0,null,{"$f":"B77-H77","v":0},0,0]
[null,null,null,null,0,null,null,null,null,null,0,null,0,0,0]
[null,null,null,null,0,null,null,null,null,null,0,null,0,0,0]
[null,null,null,null,0,null,null,null,null,null,0,null,0,0,0]
["I3. Amortización",{"$f":"SUM(B82:B85)","v":0},null,{"$f":"SUM(D82:D85)","v":0},0,null,"I3. Amortización",{"$f":"SUM(H82:H85)","v":0},null,{"$f":"SUM(J82:J85)","v":0},0,null,{"$f":"B81-H81","v":0},{"$f":"D81-J81","v":0},0]
[null,null,null,null,0,null,null,null,null,null,0,null,{"$f":"B82-H82","v":0},0,0]
[null,null,null,null,0,null,null,null,null,null,0,null,0,0,0]
[null,null,null,null,0,null,null,null,null,null,0,null,0,0,0]
[null,null,null,null,0,null,null,null,null,null,0,null,0,0,0]
["I4. Alquiler de bienes inmuebles",{"$f":"SUM(B87:B90)","v":0},null,{"$f":"SUM(D87:D90)","v":0},0,null,"I4. Alquiler de bienes inmuebles",{"$f":"SUM(H87:H90)","v":0},null,{"$f":"SUM(J87:J90)","v":0},0,null,{"$f":"B86-H86","v":0},{"$f":"D86-J86","v":0},0]
[null,null,null,null,0,null,null,null,null,null,0,null,{"$f":"B87-H87","v":0},0,0]
[null,null,null,null,0,null,null,null,null,null,0,null,{"$f":"B88-H88","v":0},0,0]
[null,null,null,null,0,null,null,null,null,null,0,null,0,0,0]
[null,null,null,null,0,null,null,null,null,null,0,null,0,0,0]
["I5. Adquisición de materiales y bienes consumibles parcialmente imputables al proyecto",{"$f":"SUM(B92:B95)","v":0},null,{"$f":"SUM(D92:D95)","v":0},0,null,"I5. Adquisición de materiales y bienes consumibles parcialmente imputables al proyecto",{"$f":"SUM(H92:H95)","v":0},null,{"$f":"SUM(J92:J95)","v":0},0,null,{"$f":"B91-H91","v":0},{"$f":"D91-J91","v":0},0]
[null,null,null,null,0,null,null,null,null,null,0,null,{"$f":"B92-H92","v":0},0,0]
[null,null,null,null,0,null,null,null,null,null,0,null,0,0,0]
[null,null,null,null,0,null,null,null,null,null,0,null,0,0,0]
[null,null,null,null,0,null,null,null,null,null,0,null,0,0,0]
["I6. Mantenimiento de edificios y/o instalaciones",{"$f":"SUM(B97:B100)","v":0},null,{"$f":"SUM(D97:D100)","v":0},0,null,"I6. Mantenimiento de edificios y/o instalaciones",{"$f":"SUM(H97:H100)","v":0},null,{"$f":"SUM(J97:J100)","v":0},0,null,{"$f":"B96-H96","v":0},{"$f":"D96-J96","v":0},0]
[null,null,null,null,0,null,null,null,null,null,0,null,{"$f":"B97-H97","v":0},0,0]
[null,null,null,null,0,null,null,null,null,null,0,null,0,0,0]
[null,null,null,null,0,null,null,null,null,null,0,null,0,0,0]
[null,null,null,null,0,null,null,null,null,null,0,null,0,0,0]
["I7. Comunicaciones (teléfono, correos, conexión a internet)",{"$f":"SUM(B102:B105)","v":0},null,{"$f":"SUM(D102:D105)","v":0},0,null,"I7. Comunicaciones (teléfono, correos, conexión a internet)",{"$f":"SUM(H102:H105)","v":0},null,{"$f":"SUM(J102:J105)","v":0},0,null,{"$f":"B101-H101","v":0},{"$f":"D101-J101","v":0},0]
[null,null,null,null,0,null,null,null,null,null,0,null,{"$f":"B102-H102","v":0},0,0]
[null,null,null,null,0,null,null,null,null,null,0,null,0,0,0]
[null,null,null,null,0,null,null,null,null,null,0,null,0,0,0]
[null,null,null,null,0,null,null,null,null,null,0,null,0,0,0]
["I8. Gastos financieros",{"$f":"SUM(B107:B110)","v":0},null,{"$f":"SUM(D107:D110)","v":0},0,null,"I8. Gastos financieros",{"$f":"SUM(H107:H110)","v":0},null,{"$f":"SUM(J107:J110)","v":0},0,null,{"$f":"B106-H106","v":0},{"$f":"D106-J106","v":0},0]
[null,null,null,null,0,null,null,null,null,null,0,null,{"$f":"B107-H107","v":0},0,0]
[null,null,null,null,0,null,null,null,null,null,0,null,0,0,0]
[null,null,null,null,0,null,null,null,null,null,0,null,0,0,0]
[null,null,null,null,0,null,null,null,null,null,0,null,0,0,0]
["I9. Suministros",{"$f":"SUM(B112:B115)","v":0},null,{"$f":"SUM(D112:D115)","v":0},0,null,"I9. Suministros",{"$f":"SUM(H112:H115)","v":0},null,{"$f":"SUM(J112:J115)","v":0},0,null,{"$f":"B111-H111","v":0},{"$f":"D111-J111","v":0},0]
[null,null,null,null,0,null,null,null,null,null,0,null,{"$f":"B112-H112","v":0},0,0]
[null,null,null,null,0,null,null,null,null,null,0,null,0,0,0]
[null,null,null,null,0,null,null,null,null,null,0,null,0,0,0]
[null,null,null,null,0,null,null,null,null,null,0,null,0,0,0]
["I10. Trabajo realizado por otras empresas, parcialmente imputables al proyecto (limpieza, seguridad...)",{"$f":"SUM(B117:B120)","v":0},null,{"$f":"SUM(D117:D120)","v":0},0,null,"I10. Trabajo realizado por otras empresas, parcialmente imputables al proyecto (limpieza, seguridad...)",{"$f":"SUM(H117:H120)","v":0},null,{"$f":"SUM(J117:J120)","v":0},0,null,{"$f":"B116-H116","v":0},{"$f":"D116-J116","v":0},0]
[null,null,null,null,0,null,null,null,null,null,0,null,{"$f":"B117-H117","v":0},0,0]
[null,null,null,null,0,null,null,null,null,null,0,null,0,0,0]
[null,null,null,null,0,null,null,null,null,null,0,null,0,0,0]
[null,null,null,null,0,null,null,null,null,null,0,null,0,0,0]
["TOTAL GASTOS INDIRECTOS (se podrán asignar al proyecto subvencionable usando un porcentaje de asignación) - Máximo 10% del importe imputable a la subvención municipal",{"$f":"SUM(B71,B76,B81,B86,B91,B96,B101,B106,B111,B116)","v":0},{"$f":"IF(B121>0,B121/$B$13,)","v":0},{"$f":"SUM(D71,D76,D81,D86,D91,D96,D101,D106,D111,D116)","v":0},{"$f":"E71+E76+E81+E86+E91+E96+E101+E106+E111+E116","v":0},null,"TOTAL GASTOS INDIRECTOS (se podrán asignar al proyecto subvencionable usando un porcentaje de asignación) - Máximo 10% del importe imputable a la subvención municipal",{"$f":"SUM(H71,H76,H81,H86,H91,H96,H101,H106,H111,H116)","v":0},{"$f":"IF(H121>0,H121/$H$13,)","v":0},{"$f":"SUM(J71,J76,J81,J86,J91,J96,J101,J106,J111,J116)","v":0},{"$f":"K71+K76+K81+K86+K91+K96+K101+K106+K111+K116","v":0},{"$f":"+IF(H121>H13*0.1,\"ALERTA: Màxim 10% import imputable a la subvenció municipal\", \" \")","v":" "},{"$f":"B121-H121","v":0},{"$f":"D121-J121","v":0},0]
["TOTAL DE GASTOS PREVISTOS",{"$f":"SUM(B70+B121)","v":0},{"$f":"IF(B122>0,B122/$B$13,)","v":0},{"$f":"SUM(D70+D121)","v":0},{"$f":"SUM(E70+E121)","v":0},null,"TOTAL DE GASTOS PREVISTOS",{"$f":"SUM(H70+H121)","v":0},{"$f":"IF(H122>0,H122/$H$13,)","v":0},{"$f":"SUM(J70+J121)","v":0},{"$f":"SUM(K70+K121)","v":0},null,0,{"$f":"D122-J122","v":0},0]
[null,{"$f":"IF(B122>B13,\"La suma del detalle de gastos no puede ser superior al importe total de subvención municipal indicado en el recuadro.\",(IF(B122<B13,\"La suma del detalle de gastos no puede ser inferior al importe total de subvención municipal indicado en el recuadro.\",\"\")))","v":""},null,{"$f":"IF(D122>B14,\"La suma del detalle de gastos no puede ser superior al importe total de la aportación/cofinanciación indicado en el recuadro.\",(IF(D122<B14,\"La suma del detalle de gastos no puede ser inferior al importe total de la aportación/cofinanciación indicado en el recuadro.\",\"\")))","v":""},{"$f":"IF(E122>B12,\"La suma del detalle de gastos no puede ser superior al importe total del proyecto indicado en el recuadro.\",(IF(E122<B12,\"La suma del detalle de gastos no puede ser inferior al importe total del proyecto indicado en el recuadro.\",\"\")))","v":""},null,null,{"$f":"IF(H122>H13,\"La suma del detalle de gastos no puede ser superior al importe total de subvención municipal indicado en el recuadro.\",(IF(H122<H13,\"La suma del detalle de gastos no puede ser inferior al importe total de subvención municipal indicado en el recuadro.\",\"\")))","v":""},null,{"$f":"IF(J122>H14,\"La suma del detalle de gastos no puede ser superior al importe total de la aportación/cofinanciación indicado en el recuadro.\",(IF(J122<H14,\"La suma del detalle de gastos no puede ser inferior al importe total de la aportación/cofinanciación indicado en el recuadro.\",\"\")))","v":""},{"$f":"IF(K122>H12,\"La suma del detalle de gastos no puede ser superior al importe total del proyecto indicado en el recuadro.\",(IF(K122<H12,\"La suma del detalle de gastos no puede ser inferior al importe total del proyecto indicado en el recuadro.\",\"\")))","v":""}]
["Modalidad Ba: Intercooperación de 2º y mayor nivel: Proyectos promovidos por organizaciones representativas o referentes de la Economía Social y Solidaria o de las finanzas éticas de segundo nivel y superior, que contribuyan al desarrollo de la Estrategia ESSBCN2030 de Barcelona y los objetivos estratégicos del PIESS 2024-2027, y tengan por destinatarias a sus organizaciones socias"]
["1. La cuantía de la subvención otorgada no superará el 80% del gasto total del proyecto a subvencionar."]
["2. El importe máximo de subvención para la modalidad Ba es 25.000€."]
["3. En el caso de que la solicitud presentada sobrepase el importe máximo, se considerará como importe solicitado el máximo de lo establecido en la convocatoria."]
["4. Se limita con un máximo del 25% el importe de la subvención para gastos de personal propio asignado al proyecto subvencionado (retribuciones y seguridad social- régimen general o autónomos)."]
["5. Los gastos de alquileres inmuebles de la sede de la entidad en ningún caso se podrán imputar como gasto directo."]
["6. Son imputables en esta modalidad los gastos indirectos, detallados en el apartado 13.3. de las bases reguladoras; con un máximo del 10% del importe de la subvención.\nEl carácter subvencionable del gasto de amortización estará sujeto a las siguientes condiciones:\n> Que las subvenciones no hayan contribuido a la compra de los bienes.\n> Que la amortización se calcule de conformidad con las normas de contabilidad generalmente aceptadas.\n> Que el coste se refiera al periodo subvencionable."]
["7. Para las subvenciones otorgadas por importe igual o superior a 20.000 € es obligatorio un informe de auditoría para la justificación. El importe de este informe se considera gasto subvencionable, con un límite máximo de 1.500 €."]
["8. Viajes y desplazamientos imputables a las actividades del proyecto subvencionable (con un límite del 7% de la subvención)"]
["9. En ningún caso se considerarán gastos subvencionables:\n> Los impuestos indirectos cuando sean susceptibles de recuperación o compensación.\n> Los gastos de inversión, incluidas las adquisiciones de bienes muebles.\n> Los gastos realizados con fecha anterior al inicio del proyecto y fecha posterior a la finalización del proyecto.\n> Otros gastos que se indiquen en la convocatoria."]
["10. La retribución de las personas contratadas en el marco del proyecto subvencionado no puede ser inferior al Salario Mínimo Interprofesional (SMI), ni a la estipulada en el correspondiente convenio o marco normativo de referencia (punto 7 de las bases 2025: requisitos de los proyectos)."]
["11, Los materiales producidos de difusión, estudios, informes o materiales didácticos utilizados, etc. en el caso de tratarse de gasto elegible de la subvención, deberán tener licencia Creative Commons -Compartir Igual- (share a like) y no podrá tener la condición –Sin Obras Derivadas- (no derivate Works)."]
["12. Los proyectos subvencionados deben fomentar actividades de interés público o social, las cuales deben ser gratuitas para las personas participantes o en ningún caso el precio debe suponer un obstáculo para su participación, buscando otras formas de acceso para personas con dificultades económicas. En el caso de que haya algún tipo de lucro, tendrá que revertir en las propias actividades subvencionadas."]
["13. El Ayuntamiento de Barcelona y sus entidades municipales en ningún caso subvencionarán el mismo proyecto, ejecutado durante el mismo periodo, por ningún otro procedimiento de concesión que no sea el regulado por las bases reguladoras."]
["14. El/la beneficiario/a no podrá alterar en ningún caso el destino de las subvenciones concedidas."]
["15. En caso de realizarse gastos superiores a los importes establecidos por los contratos menores de servicios, suministros y obras de la Ley de Contratos del Sector Público 9/2017, se deberán incorporar tres presupuestos solicitados y argumentar el motivo de la adjudicación en el caso de no ser la propuesta más ventajosa económicamente."]
["16. No se pueden imputar en ningún caso gastos de inversión, correspondientes a partidas del inmovilizado, con el dinero de la subvención otorgada en esta convocatoria específica. Sí se pueden imputar a la parte de contribución, siempre que sean gastos dentro del periodo ejecutivo del proyecto subvencionado y acreditables tal como se describe en las bases reguladoras vigentes."]
["17. En caso de realizarse gastos superiores a los importes establecidos por los contratos menores de servicios, suministros y obras de la Ley de Contratos del Sector Público 9/2017, se deberán incorporar tres presupuestos solicitados y argumentar el motivo de la adjudicación en el caso de no ser la propuesta más ventajosa económicamente."]
["18. En el caso de presentar tickets, su importe no podrá superar el 10% de la subvención e irán acompañados de una declaración responsable del representante legal de la persona jurídica o de la agrupación de personas jurídicas que indicará en qué concepto se imputa este gasto."]

{"sheet":"Resumen Presupuesto","index":2,"n_rows":27,"n_cols":12,"rows_kept":27,"cut":false,"hidden":false,"merged":[[26,7,26,10],[6,7,7,8],[6,9,7,9],[6,10,7,10],[9,7,10,7],[9,8,10,8],[9,9,10,9],[9,10,10,10],[12,7,13,7],[12,8,13,8],[12,9,13,9],[12,10,13,10],[21,7,21,8],[10,0,11,0],[17,0,18,1],[17,2,18,3],[17,4,18,5],[1,2,2,8],[3,0,3,9],[5,0,5,1],[6,0,7,1],[6,2,7,3],[6,4,7,5]]}
[]
[null,null,"Resumen presupuesto Ba"]
[]
["Subvenciones del Ayuntamiento de Barcelona para el fortalecimiento de la Economía Social y Solidaria y por la intercooperación en la Estrategia #ESSBCN2030 - FORTALECEMOS LA ESS 2025",null,null,null,null,null,null,null,null,null,"MODALIDAD Ba"]
[]
["GASTOS PREVISTOS",null,"SOLICITUD INICIAL","REFORMULACIÓN","SOLICITUD INICIAL","REFORMULACIÓN",null,"INGRESOS PREVISTOS",null,"SOLICITUD INICIAL","REFORMULACIÓN"]
["Gastos directos \n(aquellas que se identifican directamente con el proyecto)",null,"Coste total",null,"Subvención",null,null,"Ingresos previstos",null,"Previsión inicial ingreso total","Previsión reformulada ingreso total"]
[]
["Ba","D1. Retribuciones y seguridad social (régimen general) del personal propio vinculado directamente y de forma significativa al proyecto subvencionable (máximo 25% subvención)",{"$f":"+'Reformulación Presupuesto Ba'!E20","v":0},{"$f":"+'Reformulación Presupuesto Ba'!K20","v":0},{"$f":"+'Reformulación Presupuesto Ba'!B20","v":0},{"$f":"+'Reformulación Presupuesto Ba'!H20","v":0},null,"A.","Subvención municipal (importe solicitado a la instancia/otorgado)",{"$f":"'Reformulación Presupuesto Ba'!B13","v":0},{"$f":"'Reformulación Presupuesto Ba'!H13","v":0}]
[null,"D2. Trabajos realizados por profesionales y empresas externas directamente vinculadas al acompañamiento de procesos de la organización y con sus asociadas vinculados a las acciones subvencionadas",{"$f":"+'Reformulación Presupuesto Ba'!E27","v":0},{"$f":"+'Reformulación Presupuesto Ba'!K27","v":0},{"$f":"+'Reformulación Presupuesto Ba'!B27","v":0},{"$f":"+'Reformulación Presupuesto Ba'!H27","v":0},null,"B.","Subvenciones de otras administraciones"]
[null,"D3. Alquiler de bienes inmuebles directamente vinculados al proyecto subvencionable.",{"$f":"+'Reformulación Presupuesto Ba'!E33","v":0},{"$f":"+'Reformulación Presupuesto Ba'!K33","v":0},{"$f":"+'Reformulación Presupuesto Ba'!B33","v":0},{"$f":"+'Reformulación Presupuesto Ba'!H33","v":0},null,null,null,null,null,{"$f":"+IF(K11<0,\"No s'admeten valors negatius\",\"\")","v":""}]
[null,"D4. Adquisición de materiales y bienes consumibles íntegramente imputables al proyecto subvencionable.",{"$f":"+'Reformulación Presupuesto Ba'!E39","v":0},{"$f":"+'Reformulación Presupuesto Ba'!K39","v":0},{"$f":"+'Reformulación Presupuesto Ba'!B39","v":0},{"$f":"+'Reformulación Presupuesto Ba'!H39","v":0},null,"C.","Subvenciones de entidades privadas",null,null,""]
[null,"D5. Publicidad y propaganda de las actividades directamente vinculadas al proyecto subvencionable.",{"$f":"+'Reformulación Presupuesto Ba'!E45","v":0},{"$f":"+'Reformulación Presupuesto Ba'!K45","v":0},{"$f":"+'Reformulación Presupuesto Ba'!B45","v":0},{"$f":"+'Reformulación Presupuesto Ba'!H45","v":0},null,"D.","Recursos propios de la organización aplicados al proyecto"]
[null,"D6. Viajes y desplazamientos imputables a las actividades del proyecto subvencionable (con un límite del 7% de la subvención).",{"$f":"+'Reformulación Presupuesto Ba'!E51","v":0},{"$f":"+'Reformulación Presupuesto Ba'!K51","v":0},{"$f":"+'Reformulación Presupuesto Ba'!B51","v":0},{"$f":"+'Reformulación Presupuesto Ba'!H51","v":0}]
[null,"D7. Gastos del informe de auditoría (con un límite máximo de 1.500 euros de la subvención)",{"$f":"+'Reformulación Presupuesto Ba'!E57","v":0},{"$f":"+'Reformulación Presupuesto Ba'!K57","v":0},{"$f":"+'Reformulación Presupuesto Ba'!B57","v":0},{"$f":"+'Reformulación Presupuesto Ba'!H57","v":0},null,"E.","Taquillaje"]
[null,"D8. Otros gastos que de manera justificada puedan imputarse directamente al proyecto subvencionable.",{"$f":"+'Reformulación Presupuesto Ba'!E63","v":0},{"$f":"+'Reformulación Presupuesto Ba'!K63","v":0},{"$f":"+'Reformulación Presupuesto Ba'!B63","v":0},{"$f":"+'Reformulación Presupuesto Ba'!H63","v":0},null,"F.","Cuotas de inscripción"]
[null,"Total Gastos Directos",{"$f":"SUM(C9:C16)","v":0},{"$f":"SUM(D9:D16)","v":0},{"$f":"SUM(E9:E16)","v":0},{"$f":"SUM(F9:F16)","v":0},null,"G.","Venta de Productos"]
["Gastos indirectos (máximo 10% subvención)",null,"Indirectes inicial total",null,"Indirectes inicial subvenció",null,null,"H","Publicidad y/o Esponsorización"]
[null,null,null,null,null,null,null,"I.","Otros ingresos"]
[null,"Total Gastos Indirectos",{"$f":"'Reformulación Presupuesto Ba'!E121","v":0},{"$f":"'Reformulación Presupuesto Ba'!K121","v":0},{"$f":"'Reformulación Presupuesto Ba'!B121","v":0},{"$f":"'Reformulación Presupuesto Ba'!H121","v":0},null,null,"Total Ingresos",{"$f":"SUM(J9:J19)","v":0},0]
[null,"Total Gastos",{"$f":"+C17+C20","v":0},0,0,0]
[null,null,null,null,null,null,null,"Ingresos menos gastos",null,{"$f":"+J20-C21","v":0},{"$f":"+K20-D21","v":0}]
[]
[null,null,null,null,null,null,null,null,null,"% subvencionado inicialmente",{"$f":"IF(J9>0,J9/C21,\"\")","v":""}]
[]
[null,null,null,null,null,null,null,null,null,"% subvencionado después de reformular",{"$f":"IF(K9>9,K9/D21,\"\")","v":""},"*"]
[null,null,null,null,null,null,null,"*Este porcentaje debe ser igual o menor al porcentaje subvencionado inicialmente."]